[Event "*** Titled Tuesday Blitz"]
[Site "Chess.com"]
[Date "2018.11.06"]
[Round "8"]
[White "Federtiu"]
[Black "mc4chess"]
[Result "1-0"]
[WhiteElo "2634"]
[BlackElo "2505"]
[TimeControl "180+2"]
[EndTime "14:49:26 PST"]
[Termination "Federtiu won by resignation"]

1. e4 {[%clk 0:03:01.9]} 1... c5 {[%clk 0:03:00.8]} 2. Nf3 {[%clk 0:03:01.6]}
2... e6 {[%clk 0:03:02]} 3. g3 {[%clk 0:03:02.7]} 3... Nf6 {[%clk 0:03:01.3]} 4.
d3 {[%clk 0:03:01.5]} 4... d5 {[%clk 0:02:59.7]} 5. exd5 {[%clk 0:03:00.2]} 5...
Nxd5 {[%clk 0:03:00.2]} 6. Bg2 {[%clk 0:03:01.3]} 6... Be7 {[%clk 0:02:59.4]} 7.
O-O {[%clk 0:03:02.7]} 7... O-O {[%clk 0:03:00.9]} 8. c3 {[%clk 0:03:03.6]} 8...
Nc6 {[%clk 0:02:59.8]} 9. a3 {[%clk 0:03:04.3]} 9... b6 {[%clk 0:03:00.6]} 10.
b4 {[%clk 0:03:04.8]} 10... Bb7 {[%clk 0:02:55.6]} 11. Qb3 {[%clk 0:03:01.6]}
11... Nf6 {[%clk 0:02:48.7]} 12. Rd1 {[%clk 0:03:01.5]} 12... Rc8 {[%clk
0:02:43.3]} 13. Bf4 {[%clk 0:03:00.6]} 13... Nd5 {[%clk 0:02:28.3]} 14. Bc1
{[%clk 0:02:55.3]} 14... Bf6 {[%clk 0:02:28.8]} 15. Bb2 {[%clk 0:02:53.5]} 15...
Qe7 {[%clk 0:02:17.2]} 16. Nbd2 {[%clk 0:02:52.6]} 16... Rfd8 {[%clk 0:02:10.5]}
17. Ne4 {[%clk 0:02:52.6]} 17... cxb4 {[%clk 0:02:01.7]} 18. axb4 {[%clk
0:02:53.2]} 18... a6 {[%clk 0:01:55]} 19. Nfd2 {[%clk 0:02:22]} 19... Ne5 {[%clk
0:01:51.9]} 20. c4 {[%clk 0:02:11.9]} 20... Nxb4 {[%clk 0:01:40]} 21. Nxf6+
{[%clk 0:02:12.8]} 21... gxf6 {[%clk 0:01:41]} 22. Bxb7 {[%clk 0:02:08.5]} 22...
Qxb7 {[%clk 0:01:42.4]} 23. Qxb4 {[%clk 0:02:05.5]} 23... Nxd3 {[%clk
0:01:37.8]} 24. Qc3 {[%clk 0:02:04.9]} 24... Nxb2 {[%clk 0:01:37.1]} 25. Qxb2
{[%clk 0:02:06.8]} 25... f5 {[%clk 0:01:28.1]} 26. Qb3 {[%clk 0:01:51.9]} 26...
Rd6 {[%clk 0:01:22.6]} 27. Nf3 {[%clk 0:01:48.6]} 27... Rdc6 {[%clk 0:01:23.9]}
28. Ne5 {[%clk 0:01:48.9]} 28... Rc5 {[%clk 0:01:22]} 29. Rd7 {[%clk 0:01:44.4]}
29... R8c7 {[%clk 0:01:23.1]} 30. Rd8+ {[%clk 0:01:45.4]} 30... Kg7 {[%clk
0:01:22.2]} 31. Qb2 {[%clk 0:01:44.2]} 31... f6 {[%clk 0:01:23.5]} 32. Nd3
{[%clk 0:01:43.4]} 32... Rxc4 {[%clk 0:01:24.5]} 33. Nf4 {[%clk 0:01:43.1]}
33... Qe4 {[%clk 0:01:12]} 34. h4 {[%clk 0:01:06.1]} 34... Rc2 {[%clk
0:01:06.4]} 35. Nh5+ {[%clk 0:01:06.4]} 1-0

[Event "*** Titled Tuesday Blitz"]
[Site "Chess.com"]
[Date "2018.11.06"]
[Round "8"]
[White "AkibaRubi"]
[Black "Mbneu"]
[Result "0-1"]
[WhiteElo "2467"]
[BlackElo "2275"]
[TimeControl "180+2"]
[EndTime "14:49:28 PST"]
[Termination "Mbneu won on time"]

1. d4 {[%clk 0:03:01.9]} 1... Nf6 {[%clk 0:03:00.2]} 2. c4 {[%clk 0:03:02.7]}
2... c5 {[%clk 0:03:01.2]} 3. e3 {[%clk 0:03:01.8]} 3... g6 {[%clk 0:03:00]} 4.
Nf3 {[%clk 0:03:02.6]} 4... Bg7 {[%clk 0:03:00.3]} 5. Nc3 {[%clk 0:03:01]} 5...
b6 {[%clk 0:03:01.8]} 6. Be2 {[%clk 0:03:01.2]} 6... O-O {[%clk 0:03:02.2]} 7.
O-O {[%clk 0:03:02.3]} 7... Bb7 {[%clk 0:02:56.7]} 8. d5 {[%clk 0:03:01.9]} 8...
Na6 {[%clk 0:02:56.7]} 9. a3 {[%clk 0:02:59.7]} 9... Nc7 {[%clk 0:02:56.8]} 10.
b4 {[%clk 0:02:40.2]} 10... d6 {[%clk 0:02:56]} 11. Bb2 {[%clk 0:02:39.1]} 11...
a6 {[%clk 0:02:54.1]} 12. b5 {[%clk 0:02:21.7]} 12... axb5 {[%clk 0:02:51.3]}
13. Nxb5 {[%clk 0:02:14.8]} 13... Nxb5 {[%clk 0:02:51.5]} 14. cxb5 {[%clk
0:02:16.3]} 14... Nxd5 {[%clk 0:02:48]} 15. Bxg7 {[%clk 0:02:14.1]} 15... Kxg7
{[%clk 0:02:49.9]} 16. a4 {[%clk 0:01:56.5]} 16... Nb4 {[%clk 0:02:46.9]} 17.
Qd2 {[%clk 0:01:27.9]} 17... e5 {[%clk 0:02:46.7]} 18. Rfd1 {[%clk 0:01:25.7]}
18... e4 {[%clk 0:02:41]} 19. Ne1 {[%clk 0:01:26.6]} 19... d5 {[%clk 0:02:41.1]}
20. Nc2 {[%clk 0:01:25.5]} 20... Nxc2 {[%clk 0:02:32.5]} 21. Qxc2 {[%clk
0:01:27.4]} 21... Qf6 {[%clk 0:02:32.4]} 22. f3 {[%clk 0:01:06.6]} 22... Rfe8
{[%clk 0:02:23.4]} 23. Rab1 {[%clk 0:00:54.1]} 23... d4 {[%clk 0:02:08.6]} 24.
Qb2 {[%clk 0:00:37.5]} 24... d3 {[%clk 0:02:04]} 25. Qxf6+ {[%clk 0:00:32.6]}
25... Kxf6 {[%clk 0:02:04.4]} 26. Bf1 {[%clk 0:00:31.8]} 26... Rxa4 {[%clk
0:02:04.2]} 27. fxe4 {[%clk 0:00:30.2]} 27... Bxe4 {[%clk 0:02:06.1]} 28. Bxd3
{[%clk 0:00:26.2]} 28... Ke5 {[%clk 0:01:58.2]} 29. Bxe4 {[%clk 0:00:19.6]}
29... Rxe4 {[%clk 0:01:58.4]} 30. Kf2 {[%clk 0:00:20.3]} 30... f5 {[%clk
0:01:50.4]} 31. Rd7 {[%clk 0:00:18.1]} 31... h5 {[%clk 0:01:50]} 32. Rb7 {[%clk
0:00:16.9]} 32... Re6 {[%clk 0:01:49.9]} 33. Rb3 {[%clk 0:00:13.9]} 33... Rb4
{[%clk 0:01:46.3]} 34. Ra3 {[%clk 0:00:12.1]} 34... Rxb5 {[%clk 0:01:46.3]} 35.
Ra6 {[%clk 0:00:08.9]} 35... Ke4 {[%clk 0:01:45.1]} 0-1

[Event "*** Titled Tuesday Blitz"]
[Site "Chess.com"]
[Date "2018.11.06"]
[Round "8"]
[White "TigranLPetrosyan"]
[Black "chessdjw"]
[Result "1-0"]
[WhiteElo "2815"]
[BlackElo "2610"]
[TimeControl "180+2"]
[EndTime "14:49:32 PST"]
[Termination "TigranLPetrosyan won by resignation"]

1. Nf3 {[%clk 0:03:01.9]} 1... d5 {[%clk 0:02:58.1]} 2. g3 {[%clk 0:03:03.8]}
2... g6 {[%clk 0:02:57]} 3. Bg2 {[%clk 0:02:51.1]} 3... Bg7 {[%clk 0:02:58.3]}
4. O-O {[%clk 0:02:52.6]} 4... Nf6 {[%clk 0:02:59.3]} 5. d3 {[%clk 0:02:54.2]}
5... O-O {[%clk 0:02:59.9]} 6. Nbd2 {[%clk 0:02:56.1]} 6... a5 {[%clk
0:02:58.5]} 7. e4 {[%clk 0:02:54]} 7... Nc6 {[%clk 0:02:59]} 8. e5 {[%clk
0:02:53.5]} 8... Nd7 {[%clk 0:02:59.8]} 9. d4 {[%clk 0:02:54.7]} 9... f6 {[%clk
0:03:00.2]} 10. exf6 {[%clk 0:02:49.9]} 10... exf6 {[%clk 0:03:01.3]} 11. Re1
{[%clk 0:02:50.6]} 11... Re8 {[%clk 0:02:59.2]} 12. Rxe8+ {[%clk 0:02:35]} 12...
Qxe8 {[%clk 0:03:01.1]} 13. Nf1 {[%clk 0:02:36.2]} 13... a4 {[%clk 0:02:55.6]}
14. Ne3 {[%clk 0:02:34.8]} 14... Nb6 {[%clk 0:02:53.3]} 15. Ne1 {[%clk
0:02:36.1]} 15... Be6 {[%clk 0:02:50.5]} 16. c3 {[%clk 0:02:37.6]} 16... Nd8
{[%clk 0:02:13.1]} 17. Nd3 {[%clk 0:02:37.6]} 17... Bf7 {[%clk 0:02:11.8]} 18.
Bd2 {[%clk 0:02:36.5]} 18... c6 {[%clk 0:02:09.4]} 19. Qc2 {[%clk 0:02:37.7]}
19... Ne6 {[%clk 0:02:09.2]} 20. Re1 {[%clk 0:02:38.6]} 20... Qd7 {[%clk
0:02:08.1]} 21. b3 {[%clk 0:02:20.6]} 21... axb3 {[%clk 0:01:45.3]} 22. axb3
{[%clk 0:02:22.5]} 22... Nc8 {[%clk 0:01:46.4]} 23. Qb2 {[%clk 0:02:23.6]} 23...
Nd6 {[%clk 0:01:46.6]} 24. c4 {[%clk 0:02:24.1]} 24... dxc4 {[%clk 0:01:33.3]}
25. bxc4 {[%clk 0:02:26]} 25... Ng5 {[%clk 0:01:13]} 26. h4 {[%clk 0:02:19.5]}
26... Nge4 {[%clk 0:01:05]} 27. Bb4 {[%clk 0:02:19.7]} 27... Re8 {[%clk
0:00:31.7]} 28. Qc2 {[%clk 0:02:18.4]} 28... b5 {[%clk 0:00:19.1]} 29. Bxd6
{[%clk 0:01:59.8]} 29... Qxd6 {[%clk 0:00:13.3]} 30. cxb5 {[%clk 0:01:59.4]}
30... cxb5 {[%clk 0:00:15.2]} 31. Nc5 {[%clk 0:01:58.1]} 31... f5 {[%clk
0:00:12.4]} 32. Nxe4 {[%clk 0:01:58.2]} 32... fxe4 {[%clk 0:00:14.3]} 33. d5
{[%clk 0:01:59]} 33... Bxd5 {[%clk 0:00:09.8]} 34. Rd1 {[%clk 0:01:57.2]} 34...
Re5 {[%clk 0:00:04.4]} 35. Nxd5 {[%clk 0:01:54.5]} 35... Rxd5 {[%clk 0:00:06.3]}
36. Qb3 {[%clk 0:01:55.5]} 36... Bd4 {[%clk 0:00:04.2]} 37. Rxd4 {[%clk
0:01:55.9]} 1-0

[Event "*** Titled Tuesday Blitz"]
[Site "Chess.com"]
[Date "2018.11.06"]
[Round "8"]
[White "albi1999"]
[Black "GMHess"]
[Result "0-1"]
[WhiteElo "2456"]
[BlackElo "2660"]
[TimeControl "180+2"]
[EndTime "14:49:35 PST"]
[Termination "GMHess won by resignation"]

1. d4 {[%clk 0:03:01.9]} 1... g6 {[%clk 0:03:00.6]} 2. Nf3 {[%clk 0:02:56.5]}
2... Bg7 {[%clk 0:03:01.3]} 3. g3 {[%clk 0:02:53.5]} 3... f5 {[%clk 0:03:01.4]}
4. Bg2 {[%clk 0:02:54.3]} 4... Nf6 {[%clk 0:03:03.3]} 5. O-O {[%clk 0:02:55.8]}
5... O-O {[%clk 0:03:04.3]} 6. b3 {[%clk 0:02:57.7]} 6... a5 {[%clk 0:03:04]} 7.
Bb2 {[%clk 0:02:57.6]} 7... a4 {[%clk 0:03:05.3]} 8. c4 {[%clk 0:02:58.2]} 8...
Ne4 {[%clk 0:03:05.1]} 9. Nfd2 {[%clk 0:02:50.1]} 9... Nd6 {[%clk 0:02:43.5]}
10. bxa4 {[%clk 0:02:40.8]} 10... c5 {[%clk 0:02:29.5]} 11. e3 {[%clk
0:02:40.9]} 11... Nc6 {[%clk 0:02:30.3]} 12. Nc3 {[%clk 0:02:16.9]} 12... cxd4
{[%clk 0:02:28.6]} 13. Nb5 {[%clk 0:01:54.6]} 13... dxe3 {[%clk 0:02:15.5]} 14.
Bxg7 {[%clk 0:01:54.8]} 14... exf2+ {[%clk 0:02:09.4]} 15. Rxf2 {[%clk
0:01:56.7]} 15... Kxg7 {[%clk 0:02:11]} 16. Nxd6 {[%clk 0:01:33.4]} 16... exd6
{[%clk 0:02:12.9]} 17. Nb3 {[%clk 0:01:29.6]} 17... Rxa4 {[%clk 0:02:04.9]} 18.
Qxd6 {[%clk 0:01:29.5]} 18... Rxc4 {[%clk 0:01:41.8]} 19. Rd1 {[%clk 0:01:28.5]}
19... Qf6 {[%clk 0:01:40.4]} 20. Qd3 {[%clk 0:01:16.1]} 20... Ne5 {[%clk
0:01:33.6]} 21. Qd5 {[%clk 0:01:13.5]} 21... Rc6 {[%clk 0:01:11.4]} 22. Na5
{[%clk 0:01:09.3]} 22... Ng4 {[%clk 0:00:55.8]} 23. Re2 {[%clk 0:00:55.5]} 23...
Re6 {[%clk 0:00:49.4]} 24. Rxe6 {[%clk 0:00:51.5]} 24... dxe6 {[%clk 0:00:51.3]}
25. Qd4 {[%clk 0:00:47.3]} 25... e5 {[%clk 0:00:47]} 26. Qb4 {[%clk 0:00:45.6]}
26... e4 {[%clk 0:00:38.3]} 27. Nxb7 {[%clk 0:00:45.2]} 27... Bxb7 {[%clk
0:00:37.1]} 28. Qxb7+ {[%clk 0:00:47.1]} 28... Rf7 {[%clk 0:00:38]} 29. Qb6
{[%clk 0:00:43.7]} 29... Qxb6+ {[%clk 0:00:38.6]} 0-1

[Event "*** Titled Tuesday Blitz"]
[Site "Chess.com"]
[Date "2018.11.06"]
[Round "8"]
[White "saraswathii"]
[Black "sere99"]
[Result "0-1"]
[WhiteElo "2269"]
[BlackElo "2314"]
[TimeControl "180+2"]
[EndTime "14:49:44 PST"]
[Termination "sere99 won by resignation"]

1. e4 {[%clk 0:02:50.6]} 1... c6 {[%clk 0:03:00.4]} 2. d3 {[%clk 0:02:50.6]}
2... d5 {[%clk 0:03:02.3]} 3. Nd2 {[%clk 0:02:49.1]} 3... e5 {[%clk 0:03:03.3]}
4. Ngf3 {[%clk 0:02:49.4]} 4... Bd6 {[%clk 0:03:04.7]} 5. g3 {[%clk 0:02:49.5]}
5... Nf6 {[%clk 0:03:06.1]} 6. Bg2 {[%clk 0:02:48.6]} 6... O-O {[%clk
0:03:07.6]} 7. O-O {[%clk 0:02:47.7]} 7... Qc7 {[%clk 0:03:09.1]} 8. Qe2 {[%clk
0:02:47.4]} 8... Re8 {[%clk 0:03:09.2]} 9. h3 {[%clk 0:02:47.4]} 9... Nbd7
{[%clk 0:03:10.6]} 10. Re1 {[%clk 0:02:46.1]} 10... dxe4 {[%clk 0:03:09.9]} 11.
dxe4 {[%clk 0:02:42.4]} 11... b5 {[%clk 0:03:08.3]} 12. a4 {[%clk 0:02:37.3]}
12... a6 {[%clk 0:03:09.1]} 13. c3 {[%clk 0:02:31.2]} 13... Bb7 {[%clk
0:03:09.5]} 14. Nh4 {[%clk 0:02:29.4]} 14... Bf8 {[%clk 0:03:08.7]} 15. Ndf3
{[%clk 0:02:28.9]} 15... Nc5 {[%clk 0:03:08.9]} 16. axb5 {[%clk 0:02:23.9]}
16... cxb5 {[%clk 0:03:09.1]} 17. Nh2 {[%clk 0:02:17.5]} 17... Nb3 {[%clk
0:03:02.1]} 18. Rb1 {[%clk 0:02:07.4]} 18... Nxc1 {[%clk 0:03:02.7]} 19. Rbxc1
{[%clk 0:01:57.7]} 19... Bc6 {[%clk 0:02:59]} 20. Nf5 {[%clk 0:01:51.2]} 20...
a5 {[%clk 0:02:53.9]} 21. Ng4 {[%clk 0:01:37.4]} 21... Nxg4 {[%clk 0:02:53]} 22.
Qxg4 {[%clk 0:01:39.3]} 22... a4 {[%clk 0:02:47.3]} 23. Re3 {[%clk 0:01:28.8]}
23... a3 {[%clk 0:02:41.8]} 24. bxa3 {[%clk 0:01:27.2]} 24... Rxa3 {[%clk
0:02:40.6]} 25. Rf3 {[%clk 0:01:20.9]} 25... g6 {[%clk 0:02:35.6]} 26. Rd3
{[%clk 0:01:11]} 26... b4 {[%clk 0:02:25.9]} 27. Ne3 {[%clk 0:01:01.6]} 27... b3
{[%clk 0:02:24.3]} 28. Rb1 {[%clk 0:00:58.2]} 28... Rb8 {[%clk 0:02:17.6]} 29.
Qd1 {[%clk 0:00:46.3]} 29... Ba4 {[%clk 0:02:16.5]} 30. Nd5 {[%clk 0:00:45.9]}
30... Qc4 {[%clk 0:02:01.1]} 31. Ne3 {[%clk 0:00:36.6]} 31... Qc8 {[%clk
0:01:56.5]} 32. h4 {[%clk 0:00:21.8]} 32... b2 {[%clk 0:01:54.2]} 33. Qe1 {[%clk
0:00:19.3]} 33... Bc5 {[%clk 0:01:49]} 34. Nc4 {[%clk 0:00:16.5]} 34... Bc2
{[%clk 0:01:43.1]} 35. Nxa3 {[%clk 0:00:13.1]} 35... Bxd3 {[%clk 0:01:42.5]} 0-1

[Event "*** Titled Tuesday Blitz"]
[Site "Chess.com"]
[Date "2018.11.06"]
[Round "8"]
[White "Alohamora11"]
[Black "mitrabhaa"]
[Result "0-1"]
[WhiteElo "2327"]
[BlackElo "2598"]
[TimeControl "180+2"]
[EndTime "14:49:51 PST"]
[Termination "mitrabhaa won on time"]

1. e4 {[%clk 0:03:01.9]} 1... c6 {[%clk 0:02:58.6]} 2. d4 {[%clk 0:03:01.9]}
2... d5 {[%clk 0:02:59.8]} 3. exd5 {[%clk 0:03:03.8]} 3... cxd5 {[%clk
0:02:58.8]} 4. c4 {[%clk 0:03:05.7]} 4... Nf6 {[%clk 0:02:59.9]} 5. Nc3 {[%clk
0:03:06.2]} 5... Nc6 {[%clk 0:03:01.3]} 6. Bg5 {[%clk 0:03:06.4]} 6... Be6
{[%clk 0:03:00.2]} 7. Be2 {[%clk 0:03:07.4]} 7... h6 {[%clk 0:02:40.5]} 8. Bxf6
{[%clk 0:02:16.6]} 8... exf6 {[%clk 0:02:39.8]} 9. Bf3 {[%clk 0:01:57.7]} 9...
Bb4 {[%clk 0:02:37.9]} 10. cxd5 {[%clk 0:01:52]} 10... Bxd5 {[%clk 0:02:35.9]}
11. Qe2+ {[%clk 0:01:50.5]} 11... Kf8 {[%clk 0:02:31.5]} 12. Qb5 {[%clk
0:01:28.2]} 12... Qe7+ {[%clk 0:02:23.4]} 13. Kf1 {[%clk 0:01:12.5]} 13... Bxf3
{[%clk 0:02:24.1]} 14. Nxf3 {[%clk 0:01:14.2]} 14... g6 {[%clk 0:02:25.5]} 15.
d5 {[%clk 0:00:40.1]} 15... Ne5 {[%clk 0:02:21]} 16. Nxe5 {[%clk 0:00:21.7]}
16... fxe5 {[%clk 0:02:21.5]} 17. Ne4 {[%clk 0:00:22.8]} 17... Kg7 {[%clk
0:02:20.6]} 18. g3 {[%clk 0:00:20.1]} 18... a6 {[%clk 0:02:21.4]} 19. Qa4 {[%clk
0:00:19.5]} 19... Rhd8 {[%clk 0:02:20.9]} 20. Rd1 {[%clk 0:00:19.8]} 20... f5
{[%clk 0:02:20.7]} 21. Nc3 {[%clk 0:00:18.1]} 21... b5 {[%clk 0:02:21.4]} 22.
Qb3 {[%clk 0:00:18.8]} 22... Bd6 {[%clk 0:02:23]} 23. Kg1 {[%clk 0:00:19.5]}
23... Rac8 {[%clk 0:02:24.2]} 24. h4 {[%clk 0:00:19.3]} 24... Rc4 {[%clk
0:02:25]} 25. a4 {[%clk 0:00:19.5]} 25... Rb4 {[%clk 0:02:25.2]} 26. Qc2 {[%clk
0:00:20.3]} 26... h5 {[%clk 0:02:22.7]} 27. axb5 {[%clk 0:00:20.7]} 27... axb5
{[%clk 0:02:24.1]} 28. Kg2 {[%clk 0:00:17.3]} 28... Rc8 {[%clk 0:02:25.3]} 29.
Qd3 {[%clk 0:00:16.9]} 29... e4 {[%clk 0:02:23.9]} 30. Qe3 {[%clk 0:00:16]}
30... Bc5 {[%clk 0:02:24.9]} 31. Qe2 {[%clk 0:00:14.6]} 31... Qf6 {[%clk
0:02:24.5]} 32. Rd2 {[%clk 0:00:14.3]} 32... Bd6 {[%clk 0:02:24.8]} 33. Nxb5
{[%clk 0:00:14.6]} 33... Be5 {[%clk 0:02:26]} 34. Ra1 {[%clk 0:00:11.2]} 34...
f4 {[%clk 0:02:15.3]} 35. Ra7+ {[%clk 0:00:12]} 35... Kh6 {[%clk 0:02:16.3]} 36.
Kg1 {[%clk 0:00:04.7]} 36... Rc1+ {[%clk 0:02:13.9]} 37. Kh2 {[%clk 0:00:04.9]}
37... fxg3+ {[%clk 0:02:11.4]} 38. fxg3 {[%clk 0:00:06.8]} 38... Rb3 {[%clk
0:02:01.7]} 39. Rd3 {[%clk 0:00:02.2]} 39... Rxd3 {[%clk 0:02:02]} 0-1

[Event "*** Titled Tuesday Blitz"]
[Site "Chess.com"]
[Date "2018.11.06"]
[Round "8"]
[White "pulvettd"]
[Black "Pudor"]
[Result "1-0"]
[WhiteElo "2513"]
[BlackElo "2323"]
[TimeControl "180+2"]
[EndTime "14:49:56 PST"]
[Termination "pulvettd won by resignation"]

1. e4 {[%clk 0:03:01.9]} 1... c5 {[%clk 0:03:00.1]} 2. Nf3 {[%clk 0:03:02.4]}
2... Nc6 {[%clk 0:03:00.9]} 3. d4 {[%clk 0:03:04.3]} 3... cxd4 {[%clk
0:03:02.7]} 4. Nxd4 {[%clk 0:03:06.2]} 4... Qc7 {[%clk 0:03:04.2]} 5. Nc3 {[%clk
0:03:02.6]} 5... e6 {[%clk 0:03:04.9]} 6. f4 {[%clk 0:03:04]} 6... a6 {[%clk
0:03:04.9]} 7. Nxc6 {[%clk 0:03:05]} 7... Qxc6 {[%clk 0:03:05]} 8. Bd3 {[%clk
0:03:06.9]} 8... b5 {[%clk 0:03:03.2]} 9. Qe2 {[%clk 0:03:07.8]} 9... b4 {[%clk
0:03:01.7]} 10. Nd5 {[%clk 0:03:06.3]} 10... Bb7 {[%clk 0:02:43.9]} 11. Bd2
{[%clk 0:03:06.7]} 11... a5 {[%clk 0:02:18.5]} 12. Rc1 {[%clk 0:02:54.8]} 12...
Bc5 {[%clk 0:01:56.8]} 13. c3 {[%clk 0:02:54.3]} 13... bxc3 {[%clk 0:01:49]} 14.
Bxc3 {[%clk 0:02:53.4]} 14... f6 {[%clk 0:01:36.2]} 15. Qh5+ {[%clk 0:02:43]}
15... g6 {[%clk 0:01:33.5]} 16. Qe2 {[%clk 0:02:41.3]} 16... Kf7 {[%clk
0:01:27.9]} 17. Bb5 {[%clk 0:02:31.9]} 17... Qd6 {[%clk 0:01:18.6]} 18. Nxf6
{[%clk 0:02:26.4]} 18... Nxf6 {[%clk 0:01:12.9]} 19. Bxf6 {[%clk 0:02:15]} 19...
Rhc8 {[%clk 0:00:54.2]} 20. Bc3 {[%clk 0:02:09]} 20... Bd4 {[%clk 0:00:45.6]}
21. Rf1 {[%clk 0:01:47]} 21... Rc5 {[%clk 0:00:38.2]} 22. a4 {[%clk 0:01:34.3]}
22... Rac8 {[%clk 0:00:33.3]} 23. Rf3 {[%clk 0:01:35.3]} 23... Bxc3+ {[%clk
0:00:23]} 24. bxc3 {[%clk 0:01:33.9]} 24... Kg7 {[%clk 0:00:19.1]} 25. Rd1
{[%clk 0:01:28.4]} 25... Qb6 {[%clk 0:00:09.9]} 26. Rxd7+ {[%clk 0:01:30.3]}
26... Kg8 {[%clk 0:00:10.9]} 27. Qd2 {[%clk 0:01:19.4]} 27... Bxe4 {[%clk
0:00:10.3]} 28. Qd4 {[%clk 0:01:18.5]} 28... e5 {[%clk 0:00:08.7]} 29. Qxe4
{[%clk 0:01:03.4]} 29... Rxc3 {[%clk 0:00:09.6]} 30. Rxc3 {[%clk 0:00:58.4]}
30... Qg1+ {[%clk 0:00:09]} 31. Ke2 {[%clk 0:00:57.2]} 1-0

[Event "*** Titled Tuesday Blitz"]
[Site "Chess.com"]
[Date "2018.11.06"]
[Round "8"]
[White "Fy_Rakotomaharo"]
[Black "dhanushbharadwaj"]
[Result "1/2-1/2"]
[WhiteElo "2409"]
[BlackElo "2489"]
[TimeControl "180+2"]
[EndTime "14:50:00 PST"]
[Termination "Game drawn by agreement"]

1. e4 {[%clk 0:03:01.9]} 1... c6 {[%clk 0:02:56.8]} 2. d4 {[%clk 0:03:02.2]}
2... d5 {[%clk 0:02:58.3]} 3. Nc3 {[%clk 0:03:02.9]} 3... dxe4 {[%clk
0:02:58.6]} 4. Nxe4 {[%clk 0:03:04.3]} 4... Nf6 {[%clk 0:02:59.1]} 5. Nxf6+
{[%clk 0:03:04.4]} 5... exf6 {[%clk 0:03:00.3]} 6. c3 {[%clk 0:03:05.4]} 6...
Be7 {[%clk 0:03:01.7]} 7. Bd3 {[%clk 0:03:06.3]} 7... g6 {[%clk 0:03:01.8]} 8.
Bh6 {[%clk 0:03:01.6]} 8... Nd7 {[%clk 0:03:01.4]} 9. Ne2 {[%clk 0:02:59.8]}
9... Bf8 {[%clk 0:03:02]} 10. Qd2 {[%clk 0:02:53.4]} 10... Bxh6 {[%clk
0:02:42.3]} 11. Qxh6 {[%clk 0:02:53.3]} 11... Qe7 {[%clk 0:02:43.9]} 12. O-O-O
{[%clk 0:02:50.2]} 12... Qf8 {[%clk 0:02:43.9]} 13. Qh4 {[%clk 0:02:33]} 13...
h5 {[%clk 0:02:40.7]} 14. Rhe1 {[%clk 0:02:29.1]} 14... Qh6+ {[%clk 0:02:41]}
15. Kb1 {[%clk 0:02:22.1]} 15... O-O {[%clk 0:02:41.2]} 16. g4 {[%clk
0:02:13.1]} 16... g5 {[%clk 0:02:35.2]} 17. Qxh5 {[%clk 0:02:11.3]} 17... Qxh5
{[%clk 0:02:36.4]} 18. gxh5 {[%clk 0:02:13.2]} 18... Kg7 {[%clk 0:02:37.7]} 19.
Ng3 {[%clk 0:02:12.3]} 19... Nb6 {[%clk 0:02:37.2]} 20. c4 {[%clk 0:01:55.2]}
20... Bg4 {[%clk 0:02:36.3]} 21. Rc1 {[%clk 0:01:34.1]} 21... Rad8 {[%clk
0:02:35.8]} 22. d5 {[%clk 0:01:26.1]} 22... cxd5 {[%clk 0:02:32.7]} 23. c5
{[%clk 0:01:27.4]} 23... Nc4 {[%clk 0:02:30.6]} 24. Bxc4 {[%clk 0:01:21.6]}
24... dxc4 {[%clk 0:02:32.5]} 25. Rxc4 {[%clk 0:01:22.4]} 25... Be6 {[%clk
0:02:33.6]} 26. Rc2 {[%clk 0:01:19.1]} 26... f5 {[%clk 0:02:32.6]} 27. Kc1
{[%clk 0:01:17.5]} 27... Rfe8 {[%clk 0:02:27.5]} 28. Rd2 {[%clk 0:01:13.2]}
28... Rc8 {[%clk 0:02:27.1]} 29. b4 {[%clk 0:01:12.3]} 29... b6 {[%clk
0:02:27.5]} 30. Rc2 {[%clk 0:01:13.3]} 30... f4 {[%clk 0:02:27.9]} 31. Nf1
{[%clk 0:00:59.4]} 31... bxc5 {[%clk 0:02:27.6]} 32. bxc5 {[%clk 0:00:57.8]}
32... Rc6 {[%clk 0:02:28.1]} 33. Nd2 {[%clk 0:00:55.5]} 33... Rec8 {[%clk
0:02:27.8]} 34. Ne4 {[%clk 0:00:53.1]} 34... Bf5 {[%clk 0:02:26.3]} 35. Kb2
{[%clk 0:00:18.3]} 35... Bxe4 {[%clk 0:02:25.5]} 36. Rxe4 {[%clk 0:00:20.2]}
36... Rxc5 {[%clk 0:02:27]} 37. Rxc5 {[%clk 0:00:21.2]} 37... Rxc5 {[%clk
0:02:28.9]} 38. Re7 {[%clk 0:00:22.7]} 38... a5 {[%clk 0:02:29.6]} 39. h6+
{[%clk 0:00:23.2]} 39... Kxh6 {[%clk 0:02:30.9]} 40. Rxf7 {[%clk 0:00:23.8]}
40... Re5 {[%clk 0:02:32.4]} 41. Kb3 {[%clk 0:00:23.4]} 41... Re2 {[%clk
0:02:30.6]} 42. Rf5 {[%clk 0:00:23.1]} 42... Rxf2 {[%clk 0:02:31.3]} 43. Rxa5
{[%clk 0:00:22.6]} 43... Rxh2 {[%clk 0:02:32.4]} 44. Rf5 {[%clk 0:00:22.3]}
44... Kg6 {[%clk 0:02:32.4]} 45. Rf8 {[%clk 0:00:22.6]} 45... g4 {[%clk
0:02:32]} 46. Rxf4 {[%clk 0:00:21.9]} 46... Kg5 {[%clk 0:02:31.6]} 47. Rf8
{[%clk 0:00:23.3]} 47... g3 {[%clk 0:02:28]} 48. a4 {[%clk 0:00:23.1]} 48... Rh1
{[%clk 0:02:11.7]} 49. Kb2 {[%clk 0:00:19.4]} 1/2-1/2